fUST/lending_fUST_20241209
["ID","MTS","AMOUNT","RATE_DAILY","PERIOD"]
[344651540,1733674232939,-166.36248,0.00021867,2]
[344651543,1733674232949,-300.0,0.00022054,2]
[344651546,1733674232958,-300.0,0.00022054,2]
[344651548,1733674232968,-584.09906191,0.00022055,2]
[344651787,1733674240643,-7606.0,0.00022055,2]
[344651795,1733674243928,-3847.47666671,0.00022055,2]
[344651796,1733674243939,-5162.49519198,0.00022055,2]
[344651797,1733674243949,-3472.56762962,0.0002308,2]
[344651798,1733674243960,-2829.82815004,0.0002308,2]
[344651799,1733674243970,-36487.36556638,0.0002308,3]
[344651824,1733674272297,11307.4080565,0.0001,2]
[344651826,1733674293697,174.4908926,0.00013973,2]
[344651861,1733675180546,169.696733,0.00013973,2]
[344651908,1733675431934,-3995.0,0.0001979,2]
[344651911,1733675431944,-2950.02950033,0.0001999,2]
[344651927,1733675434798,-474.86394185,0.0001999,2]
[344651935,1733675437861,-2529.7919263,0.0001999,2]
[344651936,1733675437873,-3068.11642657,0.0001999,2]
[344651937,1733675437882,-300.0,0.00020375,2]
[344651938,1733675437895,-300.0,0.00020375,2]
[344651939,1733675437904,-3179.6773411,0.00020377,2]
[344651952,1733675439752,-3974.36404114,0.00020377,2]
[344651953,1733675439869,-3557.41849277,0.00020377,2]
[344651954,1733675439879,-13210.82150723,0.00021776,2]
[344651975,1733675443128,-3051.41563391,0.00021776,2]
[344651976,1733675443137,-3031.09419003,0.00021828,2]
[344651977,1733675443203,-5282.36964351,0.00021828,2]
[344651978,1733675443212,-273.85761182,0.00021928,2]
[344651979,1733675443357,-842.85524338,0.00021928,2]
[344651980,1733675443366,-8716.02092792,0.00022,2]
[344652008,1733675445891,-1736.64743588,0.00022,2]
[344652016,1733675445951,-13143.60496162,0.00022,2]
[344652018,1733675445961,-8560.13399498,0.00022019,2]
[344652020,1733675445970,-1825.5621385,0.00022097,2]
[344652022,1733675445980,-420.0,0.00022178,2]
[344652024,1733675445990,-8560.13399498,0.00022338,2]
[344652026,1733675445999,-420.0,0.00022413,2]
[344652028,1733675446008,-500.0,0.00022521,2]
[344652030,1733675446017,-500.0,0.00022521,2]
[344652031,1733675446027,-500.0,0.00022521,2]
[344652033,1733675446036,-500.0,0.00022521,2]
[344652035,1733675446045,-582.38360185,0.00022521,2]
[344652037,1733675446054,-500.0,0.00022521,2]
[344652039,1733675446064,-500.0,0.00022521,2]
[344652041,1733675446073,-500.0,0.00022521,2]
[344652043,1733675446083,-202.08402589,0.00022521,2]
[344652045,1733675446093,-500.0,0.00022521,2]
[344652047,1733675446102,-500.0,0.00022521,2]
[344652049,1733675446111,-500.0,0.00022521,2]
[344652051,1733675446121,-500.0,0.00022521,2]
[344652053,1733675446130,-591.88825144,0.00022521,2]
[344652055,1733675446139,-500.0,0.00022521,2]
[344652056,1733675446150,-500.0,0.00022521,2]
[344652058,1733675446160,-593.50363179,0.00022521,2]
[344652060,1733675446170,-500.0,0.00022521,2]
[344652062,1733675446179,-500.0,0.00022521,2]
[344652064,1733675446188,-500.0,0.00022521,2]
[344652065,1733675446197,-500.0,0.00022521,2]
[344652066,1733675446207,-500.0,0.00022521,2]
[344652068,1733675446217,-500.0,0.00022521,2]
[344652069,1733675446226,-500.0,0.00022521,2]
[344652071,1733675446235,-500.0,0.00022521,2]
[344652072,1733675446245,-500.0,0.00022521,2]
[344652073,1733675446255,-500.0,0.00022521,2]
[344652074,1733675446264,-500.0,0.00022521,2]
[344652075,1733675446274,-500.0,0.00022521,2]
[344652076,1733675446283,-220.40549403,0.00022521,2]
[344652077,1733675446292,-500.0,0.00022521,2]
[344652078,1733675446302,-500.0,0.00022521,2]
[344652079,1733675446311,-500.0,0.00022521,2]
[344652080,1733675446320,-500.0,0.00022521,2]
[344652081,1733675446329,-500.0,0.00022521,2]
[344652082,1733675446338,-500.0,0.00022521,2]
[344652083,1733675446347,-500.0,0.00022521,2]
[344652084,1733675446357,-500.0,0.00022521,2]
[344652085,1733675446367,-500.0,0.00022521,2]
[344652086,1733675446377,-500.0,0.00022521,2]
[344652087,1733675446386,-500.0,0.00022521,2]
[344652088,1733675446397,-500.0,0.00022521,2]
[344652089,1733675446406,-458.0,0.00022521,2]
[344652090,1733675446416,-500.0,0.00022521,2]
[344652091,1733675446425,-233.22503779,0.00022521,2]
[344652092,1733675446434,-8560.13399498,0.00022522,2]
[344652093,1733675446443,-8560.133995,0.00022852,2]
[344652094,1733675446453,-155.00165499,0.00022979,2]
[344652095,1733675446463,-2600.93002245,0.0002298,2]
[344652096,1733675446472,-8313.46383353,0.0002306,2]
[344652097,1733675446481,-373.97301345,0.00023071,2]
[344652098,1733675446490,-347.41502199,0.00023071,2]
[344652099,1733675446500,-500.0,0.00023071,2]
[344652100,1733675446509,-346.44861158,0.00023071,2]
[344652101,1733675446519,-307.23947168,0.00023071,2]
[344652102,1733675446528,-76572.49909782,0.00023072,2]
[344652103,1733675446537,-201.97397685,0.00023072,2]
[344652104,1733675446613,-500.0,0.00023073,2]
[344652105,1733675446639,-501.04690892,0.00023073,2]
[344652106,1733675446650,-500.0,0.00023073,2]
[344652107,1733675446660,-154.86062544,0.00023079,2]
[344652108,1733675446670,-151.0,0.00023079,7]
[344652109,1733675446679,-151.0,0.00023079,7]
[344652110,1733675446687,-132408.16820146,0.0002308,3]
[344652111,1733675446697,-218.719,0.0002308,2]
[344652112,1733675446706,-151.0,0.0002308,7]
[344652113,1733675446715,-151.0,0.0002308,7]
[344652114,1733675446724,-151.0,0.0002308,7]
[344652115,1733675446732,-151.0,0.0002308,7]
[344652116,1733675446741,-151.0,0.0002308,7]
[344652117,1733675446752,-2600.93002245,0.0002316,2]
[344652118,1733675446761,-758.317,0.0002318,2]
[344652119,1733675446771,-163.681155,0.00023288,2]
[344652120,1733675446783,-2600.93002245,0.0002334,2]
[344652121,1733675446792,-26109.0,0.000235,2]
[344652122,1733675446802,-151.0,0.000235,7]
[344652123,1733675446810,-227.952791,0.000235,7]
[344652124,1733675446820,-227.952791,0.000235,7]
[344652125,1733675446831,-151.0,0.000235,7]
[344652126,1733675446843,-362.983493,0.000235,7]
[344652127,1733675446852,-362.983493,0.000235,7]
[344652128,1733675446861,-151.0,0.000235,7]
[344652129,1733675446871,-151.0,0.000235,7]
[344652130,1733675446881,-2600.93002245,0.0002352,2]
[344652131,1733675446890,-185.7767966,0.00023562,2]
[344652132,1733675446903,-1000.0,0.00023621,2]
[344652133,1733675446914,-184.271325,0.00023625,2]
[344652134,1733675446923,-286.628798,0.000237,9]
[344652135,1733675446933,-510.16639892,0.000237,2]
[344652136,1733675446942,-2600.93002245,0.000237,2]
[344652137,1733675446951,-6060.76555606,0.00023752,2]
[344652138,1733675446960,-84120.81346152,0.00023753,5]
[344652200,1733676632183,-438.33066688,0.00021633,2]
[344652286,1733676639995,-31.50398562,0.00021633,2]
[344652287,1733676640005,-353.52316688,0.00021698,10]
[344652288,1733676640016,-1275.6823822,0.00021917,2]
[344652289,1733676640025,-156.81191579,0.00022353,2]
[344652290,1733676640034,-344.28090134,0.00022379,2]
[344652291,1733676640043,-321.25771652,0.00022443,2]
[344652305,1733676643216,-14.77606956,0.00022443,2]
[344652306,1733676643225,-300.0,0.00022452,2]
[344652307,1733676643236,-300.0,0.00022452,2]
[344652308,1733676643246,-191.80386076,0.00022453,2]
[344652309,1733676643255,-4195.72278983,0.00022453,2]
[344652310,1733676643290,-3467.78618949,0.00022453,2]
[344652312,1733676646169,-4710.38361377,0.00022453,2]
[344652313,1733676646182,-8322.05638623,0.00022453,2]
[344652318,1733676646298,-4204.05102068,0.00022453,2]
[344652319,1733676646308,-211.665255,0.00022479,2]
[344652321,1733676646317,-250.0,0.00022479,2]
[344652323,1733676646326,-726.665,0.0002256,2]
[344652325,1733676646336,-310.208693,0.00023288,2]
[344652327,1733676646345,-527.699993,0.00023398,2]
[344652329,1733676646355,-30.97885244,0.00023483,2]
[344652380,1733677150152,170.821166,0.00013973,2]
[344652421,1733677832241,-288.0,0.0002,3]
[344652422,1733677832251,-285.0,0.0002,3]
[344652423,1733677832262,-285.0,0.0002,3]
[344652424,1733677832369,-285.0,0.0002,3]
[344652425,1733677832384,-250.0,0.00021481,2]
[344652426,1733677832394,-803.8051069,0.00021828,2]
[344652427,1733677832404,-211.665255,0.00021865,2]
[344652428,1733677832413,-201.5906806,0.00021871,2]
[344652429,1733677832422,-300.0,0.00021896,2]
[344652430,1733677832432,-300.0,0.00021896,2]
[344652431,1733677832442,-24900.0,0.00021897,2]
[344652432,1733677832451,-708.879,0.0002256,2]
[344652433,1733677832461,-213.61984095,0.00022576,2]
[344652434,1733677832472,-152.0,0.00022856,2]
[344652435,1733677832482,-155.00008275,0.00022922,2]
[344652436,1733677832491,-6783.18406026,0.00023041,2]
[344652437,1733677832501,-211.24082429,0.00023041,2]
[344652438,1733677832511,-625.86531322,0.00023141,2]
[344652439,1733677832520,-10257.05172171,0.00023141,2]
[344652440,1733677832712,-5128.9810077,0.00023141,2]
[344652441,1733677832724,-793.82658666,0.00023141,2]
[344652442,1733677832735,-1122.42629562,0.00023141,2]
[344652443,1733677832762,-529.436332,0.00023141,2]
[344652453,1733677838309,-6140.221766,0.00023035,2]
[344652454,1733677838322,-500.0,0.0002314,2]
[344652455,1733677838335,-500.0,0.0002314,2]
[344652456,1733677838348,-500.0,0.0002314,2]
[344652457,1733677838360,-500.0,0.0002314,2]
[344652458,1733677838373,-500.0,0.0002314,2]
[344652460,1733677838385,-353.95743945,0.0002314,2]
[344652462,1733677838398,-500.0,0.0002314,2]
[344652465,1733677838410,-176.87647238,0.0002314,2]
[344652466,1733677838422,-500.0,0.0002314,2]
[344652467,1733677838433,-500.0,0.0002314,2]
[344652468,1733677838447,-500.0,0.0002314,2]
[344652469,1733677838460,-500.0,0.0002314,2]
[344652470,1733677838472,-500.0,0.0002314,2]
[344652471,1733677838484,-500.0,0.0002314,2]
[344652472,1733677838496,-500.0,0.0002314,2]
[344652473,1733677838510,-500.0,0.0002314,2]
[344652474,1733677838522,-500.0,0.0002314,2]
[344652475,1733677838534,-500.0,0.0002314,2]
[344652476,1733677838547,-500.0,0.0002314,2]
[344652477,1733677838559,-500.0,0.0002314,2]
[344652478,1733677838572,-500.0,0.0002314,2]
[344652479,1733677838586,-500.0,0.0002314,2]
[344652480,1733677838606,-500.0,0.0002314,2]
[344652481,1733677838620,-500.0,0.0002314,2]
[344652482,1733677838634,-500.0,0.0002314,2]
[344652483,1733677838647,-500.0,0.0002314,2]
[344652484,1733677838660,-500.0,0.0002314,2]
[344652485,1733677838675,-500.0,0.0002314,2]
[344652486,1733677838687,-500.0,0.0002314,2]
[344652487,1733677838699,-277.42317938,0.0002314,2]
[344652488,1733677838711,-500.0,0.0002314,2]
[344652489,1733677838723,-500.0,0.0002314,2]
[344652490,1733677838735,-5766.7581904,0.00023141,2]
[344652491,1733677838750,-1597.87232015,0.00023141,2]
[344652498,1733677840141,-27911.08437863,0.00023141,2]
[344652499,1733677840153,-500.0,0.00023173,2]
[344652500,1733677840165,-500.0,0.00023173,2]
[344652501,1733677840177,-500.0,0.00023173,2]
[344652502,1733677840187,-322.022649,0.00023288,2]
[344652504,1733677840307,-211.24082428,0.00023347,2]
[344652505,1733677840323,-212.549,0.00023436,3]
[344652506,1733677840332,-180.47786103,0.00023436,2]
[344652507,1733677840344,-500.0,0.00023473,2]
[344652508,1733677840353,-256.661474,0.00023562,2]
[344652509,1733677840365,-1071.77548077,0.00023653,2]
[344652510,1733677840373,-856.58842855,0.00023653,2]
[344652511,1733677840383,-211.24082428,0.00023653,2]
[344652512,1733677840392,-1000.0,0.00023721,2]
[344652513,1733677840401,-242.51402811,0.00023752,2]
[344652514,1733677840409,-261.78110942,0.00023752,2]
[344652515,1733677840418,-243.19051539,0.00023752,2]
[344652516,1733677840428,-565.06763018,0.00023752,2]
[344652517,1733677840437,-264113.4404381,0.00023753,5]
[344652518,1733677840448,-6000.0,0.00023753,5]
[344652519,1733677840460,-1943.0977592,0.00023753,5]
[344652531,1733677843423,-2168.7693,0.00023753,5]
[344652543,1733678124058,170.821166,0.00013973,2]
[344652614,1733679032506,-2047.22617868,0.0001999,2]
[344652615,1733679032518,-572.49350217,0.0001999,2]
[344652637,1733679043287,-218.4540567,0.0001989,2]
[344652638,1733679043297,-3270.98382588,0.0001999,2]
[344652639,1733679043308,-300.0,0.00019999,2]
[344652640,1733679043318,-300.0,0.00019999,2]
[344652641,1733679043327,-515.0,0.0002,3]
[344652642,1733679043338,-513.0,0.0002,3]
[344652643,1733679043348,-513.0,0.0002,3]
[344652645,1733679043358,-513.0,0.0002,3]
[344652647,1733679043369,-948.29942698,0.0002,2]
[344652649,1733679043378,-420.0,0.00021777,2]
[344652651,1733679043389,-420.0,0.00021999,2]
[344652653,1733679043406,-602.45000217,0.00022289,2]
[344652655,1733679043417,-315.7830074,0.00022514,2]
[344652658,1733679043427,-719.91,0.0002256,2]
[344652659,1733679043437,-6949.3991311,0.00022678,2]
[344652660,1733679043447,-400.0,0.00023288,2]
[344652661,1733679043456,-486.585786,0.00023402,2]
[344652662,1733679043466,-205.329179,0.00023562,2]
[344652663,1733679043477,-402.54507661,0.000236,2]
[344652665,1733679043486,-486.585786,0.00023621,2]
[344652667,1733679043496,-6050.99684002,0.00023652,2]
[344652668,1733679043505,-918.84090906,0.00023673,2]
[344652669,1733679043515,-587.0,0.00023712,2]
[344652670,1733679043524,-500.0,0.00023752,2]
[344652671,1733679043535,-500.0,0.00023752,2]
[344652672,1733679043545,-500.0,0.00023752,2]
[344652674,1733679043556,-500.0,0.00023752,2]
[344652676,1733679043566,-281.28470519,0.00023752,2]
[344652677,1733679043575,-500.0,0.00023752,2]
[344652678,1733679043585,-500.0,0.00023752,2]
[344652679,1733679043594,-227.74231794,0.00023752,2]
[344652680,1733679043604,-500.0,0.00023752,2]
[344652681,1733679043614,-500.0,0.00023752,2]
[344652682,1733679043624,-500.0,0.00023752,2]
[344652683,1733679043633,-500.0,0.00023752,2]
[344652685,1733679043648,-500.0,0.00023752,2]
[344652686,1733679043658,-500.0,0.00023752,2]
[344652687,1733679043668,-500.0,0.00023752,2]
[344652688,1733679043678,-500.0,0.00023752,2]
[344652689,1733679043687,-500.0,0.00023752,2]
[344652690,1733679043696,-500.0,0.00023752,2]
[344652691,1733679043706,-500.0,0.00023752,2]
[344652692,1733679043716,-500.0,0.00023752,2]
[344652693,1733679043726,-500.0,0.00023752,2]
[344652695,1733679043735,-500.0,0.00023752,2]
[344652696,1733679043744,-500.0,0.00023752,2]
[344652698,1733679043754,-500.0,0.00023752,2]
[344652699,1733679043763,-538.31191689,0.00023752,2]
[344652700,1733679043773,-420.75108377,0.00023752,2]
[344652701,1733679043782,-500.0,0.00023752,2]
[344652702,1733679043791,-500.0,0.00023752,2]
[344652703,1733679043801,-428.94391625,0.00023752,2]
[344652704,1733679043810,-500.0,0.00023752,2]
[344652706,1733679043819,-500.0,0.00023752,2]
[344652707,1733679043829,-500.0,0.00023752,2]
[344652708,1733679043838,-185.10919667,0.00023752,2]
[344652709,1733679043848,-500.0,0.00023752,2]
[344652710,1733679043857,-269.7500969,0.00023752,2]
[344652711,1733679043867,-57383.94243945,0.00023753,5]
[344652712,1733679043879,-4513.84074638,0.00023753,5]
[344652726,1733680015756,17006.7619859,0.0001,2]
[344652727,1733680015784,17909.4287774,0.0001,2]
[344652730,1733680124755,183.069434,0.00013973,2]
[344652731,1733680170142,-160.5908985,0.000199,7]
[344652732,1733680170162,-1139.89445712,0.00021672,2]
[344652733,1733680170182,-448.92,0.00021891,2]
[344652734,1733680170202,-174.763965,0.00022002,2]
[344652735,1733680170222,-179.793638,0.00022092,2]
[344652736,1733680170243,-5598.231012,0.00022111,2]
[344652781,1733680238762,-710.533,0.0002256,2]
[344652782,1733680238772,-4308.54401322,0.00022802,2]
[344652783,1733680238783,-2893.472059,0.00022802,2]
[344652785,1733680238870,-300.0,0.00023177,2]
[344652787,1733680238879,-300.0,0.00023177,2]
[344652789,1733680238889,-153.0,0.00023178,2]
[344652790,1733680238899,-305.6452758,0.00023178,2]
[344652791,1733680238910,-153.0,0.00023178,2]
[344652792,1733680238919,-213.3539429,0.00023178,2]
[344652793,1733680238928,-7202.01607222,0.00023209,2]
[344652794,1733680238937,-400.0,0.00023288,2]
[344652795,1733680238946,-7768.5833553,0.00023292,2]
[344652796,1733680238955,-378.455611,0.00023392,2]
[344652797,1733680238966,-2883.45331805,0.00023474,2]
[344652808,1733680240588,-4318.56275417,0.00023474,2]
[344652809,1733680240599,-164.263343,0.00023562,2]
[344652810,1733680240608,-378.455611,0.00023611,2]
[344652811,1733680240618,-179.803492,0.000237,2]
[344652812,1733680240627,-500.0,0.00023752,2]
[344652813,1733680240637,-500.0,0.00023752,2]
[344652814,1733680240648,-500.0,0.00023752,2]
[344652815,1733680240657,-500.0,0.00023752,2]
[344652816,1733680240667,-500.0,0.00023752,2]
[344652817,1733680240678,-500.0,0.00023752,2]
[344652818,1733680240687,-500.0,0.00023752,2]
[344652819,1733680240697,-605.02598681,0.00023752,2]
[344652820,1733680240707,-500.0,0.00023752,2]
[344652821,1733680240716,-500.0,0.00023752,2]
[344652822,1733680240726,-500.0,0.00023752,2]
[344652823,1733680240735,-500.0,0.00023752,2]
[344652824,1733680240744,-500.0,0.00023752,2]
[344652825,1733680240754,-500.0,0.00023752,2]
[344652826,1733680240764,-461.00025864,0.00023752,2]
[344652827,1733680240784,-203.12847052,0.00023752,2]
[344652828,1733680240796,-500.0,0.00023752,2]
[344652829,1733680240806,-500.0,0.00023752,2]
[344652830,1733680240816,-240.05531174,0.00023752,2]
[344652831,1733680240826,-651.20873024,0.00023752,2]
[344652832,1733680240836,-641.40260502,0.00023752,2]
[344652833,1733680240846,-630.1097931,0.00023752,2]
[344652834,1733680240857,-500.0,0.00023752,2]
[344652835,1733680240868,-466.96219937,0.00023752,2]
[344652836,1733680240878,-500.0,0.00023752,2]
[344652837,1733680240888,-500.0,0.00023752,2]
[344652838,1733680240899,-500.0,0.00023752,2]
[344652839,1733680240908,-500.0,0.00023752,2]
[344652840,1733680240919,-500.0,0.00023752,2]
[344652841,1733680240929,-500.0,0.00023752,2]
[344652842,1733680240939,-500.0,0.00023752,2]
[344652843,1733680240950,-500.0,0.00023752,2]
[344652844,1733680240960,-500.0,0.00023752,2]
[344652845,1733680240971,-499.99999999,0.00023752,2]
[344652846,1733680240982,-500.0,0.00023752,2]
[344652847,1733680240992,-334.95849809,0.00023752,2]
[344652848,1733680241002,-2446.89585833,0.00023753,2]
[344652849,1733680241011,-74549.00263801,0.00023753,2]
[344652881,1733680246706,-407.31191236,0.000237,2]
[344652885,1733681025563,194.7119011,0.00013973,2]
[344652887,1733681191108,-300.0,0.00019999,2]
[344652888,1733681191129,-300.0,0.00019999,2]
[344652889,1733681191149,-936.0,0.0002,3]
[344652890,1733681191169,-935.0,0.0002,3]
[344652891,1733681191190,-935.0,0.0002,3]
[344652892,1733681191210,-815.70754843,0.0002,3]
[344652909,1733681432890,-119.29245157,0.0002,3]
[344652910,1733681432900,-279.90368251,0.00021735,2]
[344653013,1733681443349,-20.09631749,0.00021735,2]
[344653015,1733681443359,-300.0,0.00021735,2]
[344653017,1733681443368,-148.982299,0.00021736,2]
[344653158,1733681445879,-4801.1831296,0.00021736,2]
[344653160,1733681445889,-228.9691341,0.00021736,2]
[344653162,1733681445898,-681.148,0.0002256,2]
[344653164,1733681445908,-18443.23583886,0.00023,2]
[344653165,1733681445917,-400.0,0.00023288,2]
[344653166,1733681445926,-1232.6166,0.0002333,15]
[344653167,1733681445935,-529.40919114,0.00023376,2]
[344653168,1733681445944,-565.52913673,0.00023453,2]
[344653169,1733681445958,-195.53056955,0.00023553,2]
[344653171,1733681445967,-1769.66456377,0.00023553,2]
[344653183,1733682564098,-197.26672297,0.0001999,2]
[344653222,1733682635190,-602.45000217,0.0001979,10]
[344653223,1733682635200,-3073.71710291,0.0001999,2]
[344653224,1733682635210,-948.29942698,0.0002,2]
[344653225,1733682635220,-180.47786103,0.0002,2]
[344653226,1733682635230,-701.06758337,0.00020377,2]
[344653227,1733682635242,-248.5665462,0.00022306,2]
[344653228,1733682635252,-315.7830074,0.00022321,2]
[344653229,1733682635262,-322.92062924,0.00022387,2]
[344653230,1733682635271,-682.676,0.0002256,2]
[344653231,1733682635281,-300.0,0.00022714,2]
[344653232,1733682635290,-300.0,0.00022714,2]
[344653233,1733682635300,-10714.47350922,0.00022715,2]
[344653234,1733682635312,-669.065832,0.00022715,2]
[344653235,1733682635327,-368.82688662,0.00022715,2]
[344653236,1733682635339,-8847.62676106,0.00022715,2]
[344653237,1733682635349,-500.0,0.00023204,2]
[344653239,1733682635359,-500.0,0.00023204,2]
[344653241,1733682635369,-500.0,0.00023204,2]
[344653243,1733682635378,-500.0,0.00023204,2]
[344653246,1733682635387,-500.0,0.00023204,2]
[344653248,1733682635396,-500.0,0.00023204,2]
[344653251,1733682635405,-500.0,0.00023204,2]
[344653253,1733682635415,-500.0,0.00023204,2]
[344653255,1733682635424,-500.0,0.00023204,2]
[344653257,1733682635434,-500.0,0.00023204,2]
[344653259,1733682635444,-500.0,0.00023204,2]
[344653261,1733682635453,-500.0,0.00023204,2]
[344653263,1733682635463,-240.05531174,0.00023204,2]
[344653265,1733682635474,-500.0,0.00023204,2]
[344653267,1733682635485,-605.02598681,0.00023204,2]
[344653268,1733682635495,-500.0,0.00023204,2]
[344653270,1733682635504,-500.0,0.00023204,2]
[344653271,1733682635513,-500.0,0.00023204,2]
[344653272,1733682635523,-500.0,0.00023204,2]
[344653273,1733682635533,-500.0,0.00023204,2]
[344653274,1733682635543,-500.0,0.00023204,2]
[344653275,1733682635552,-500.0,0.00023204,2]
[344653276,1733682635562,-270.26597943,0.00023204,2]
[344653277,1733682635572,-520.07858041,0.00023204,2]
[344653278,1733682635581,-500.0,0.00023204,2]
[344653279,1733682635591,-200.9497574,0.00023204,2]
[344653280,1733682635686,-267.80700724,0.00023204,2]
[344653281,1733682635696,-500.0,0.00023204,2]
[344653282,1733682635706,-500.0,0.00023204,2]
[344653283,1733682635715,-500.0,0.00023204,2]
[344653284,1733682635724,-500.0,0.00023204,2]
[344653285,1733682635736,-500.0,0.00023204,2]
[344653286,1733682635745,-500.0,0.00023204,2]
[344653287,1733682635755,-500.0,0.00023204,2]
[344653288,1733682635764,-500.0,0.00023204,2]
[344653289,1733682635773,-500.0,0.00023204,2]
[344653290,1733682635784,-500.0,0.00023204,2]
[344653291,1733682635794,-500.0,0.00023204,2]
[344653292,1733682635803,-500.0,0.00023204,2]
[344653293,1733682635812,-500.0,0.00023204,2]
[344653294,1733682635822,-500.0,0.00023204,2]
[344653295,1733682635831,-500.0,0.00023204,2]
[344653296,1733682635840,-500.0,0.00023204,2]
[344653297,1733682635850,-500.0,0.00023204,2]
[344653298,1733682635860,-473.28637573,0.00023204,2]
[344653299,1733682635870,-500.0,0.00023204,2]
[344653300,1733682635879,-500.0,0.00023204,2]
[344653301,1733682635889,-500.0,0.00023204,2]
[344653302,1733682635898,-500.0,0.00023204,2]
[344653303,1733682635908,-91529.34032434,0.00023205,2]
[344653304,1733682635918,-2446.89585833,0.00023205,2]
[344653305,1733682635927,-4318.56275417,0.00023205,2]
[344653306,1733682635940,-400.0,0.00023288,2]
[344653307,1733682635949,-1001.9584488,0.000233,4]
[344653308,1733682635959,-500.0,0.00023373,2]
[344653309,1733682635969,-500.0,0.00023373,2]
[344653310,1733682635978,-500.0,0.00023373,2]
[344653311,1733682635989,-195.53056955,0.00023462,2]
[344653312,1733682635999,-151.0,0.0002354,7]
[344653313,1733682636008,-151.0,0.0002354,7]
[344653314,1733682636018,-151.0,0.0002354,7]
[344653315,1733682636028,-151.0,0.0002354,7]
[344653316,1733682636037,-151.0,0.0002354,7]
[344653317,1733682636047,-151.0,0.00023541,7]
[344653318,1733682636056,-151.0,0.00023541,7]
[344653319,1733682636066,-152.011934,0.00023541,7]
[344653320,1733682636076,-264.047303,0.00023541,7]
[344653321,1733682636090,-264.047303,0.00023541,7]
[344653322,1733682636100,-151.0,0.00023541,7]
[344653323,1733682636109,-151.0,0.00023541,7]
[344653324,1733682636119,-151.0,0.00023541,7]
[344653325,1733682636129,-153.524987,0.00023541,7]
[344653326,1733682636139,-151.0,0.00023542,7]
[344653327,1733682636148,-325.519409,0.00023542,7]
[344653328,1733682636158,-325.519409,0.00023542,7]
[344653329,1733682636170,-698.349883,0.00023542,7]
[344653330,1733682636179,-698.349883,0.00023542,7]
[344653331,1733682636190,-151.0,0.00023542,7]
[344653332,1733682636200,-151.0,0.00023542,7]
[344653333,1733682636210,-435.591748,0.00023542,7]
[344653334,1733682636220,-435.591748,0.00023542,7]
[344653335,1733682636229,-168.2431,0.00023543,7]
[344653336,1733682636240,-168.2431,0.00023543,7]
[344653337,1733682636249,-691.176439,0.00023543,7]
[344653338,1733682636259,-691.176439,0.00023543,7]
[344653339,1733682636269,-256.661474,0.00023562,2]
[344653340,1733682636279,-500.0,0.00023573,2]
[344653341,1733682636288,-402.54507661,0.000236,2]
[344653342,1733682636298,-151.0,0.00023643,7]
[344653343,1733682636307,-151.0,0.00023643,7]
[344653344,1733682636316,-274.846016,0.00023643,7]
[344653345,1733682636326,-274.846016,0.00023643,7]
[344653346,1733682636335,-213.054017,0.00023643,7]
[344653347,1733682636345,-213.054017,0.00023643,7]
[344653348,1733682636354,-500.0,0.00023643,2]
[344653349,1733682636365,-261.78110942,0.00023643,2]
[344653350,1733682636375,-306.3111169,0.00023643,2]
[344653351,1733682636385,-242.51402811,0.00023643,2]
[344653352,1733682636396,-500.0,0.00023643,2]
[344653353,1733682636405,-400.02612828,0.00023643,2]
[344653354,1733682636416,-151.0,0.00023644,7]